Cogmind - Beta 17 @@@ ROGUE MODE // 2026.07.14 @ 13:53:37 Player: LanceLander Result: Destroyed by G-50 Soldier with Heavy Laser Performance ------------- Evolutions (4) 2000 Regions Visited (14) 2800 Robots Destroyed (119) 595 Value Destroyed (6753) 6753 Prototype IDs (28) 560 Alien Tech Used (0) 0 Bonus (2805) 2805 TOTAL SCORE: 15513 Bonus ------- High Alert Combat Kills 304 Follower Combat Kills 483 Entered Garrisons 600 Used RIF Installer 1500 Friendly Fire -82 Cogmind --------- Core Integrity 0/850 Matter 267/300 Energy 87/100 System Corruption 1% Temperature Cool (6) Movement Core (50) Location -6/Garrison Parts ------- > --- POWER (2) -------- (None) > --- PROPULSION (3) --- (None) > --- UTILITY (7) ------ Advanced Heat Sink Relay Coupler [Duelist] (22) Relay Coupler [Sentry] (25) > --- WEAPON (3) ------- (None) > --- INVENTORY (5) ---- Light Angular Momentum Engine Improved Sensor Array Authchip [R/Combat] Relay Coupler [Hunter] (15) Antimatter Cannon Peak State ------------ > --- POWER ------------ Nuclear Core Antimatter Reactor > --- PROPULSION ------- Carbon-fiber Leg Potential Leg Potential Leg > --- UTILITY ---------- Advanced Heat Sink Damper Plating > --- WEAPON ----------- Minigun Gauss Rifle Gauss Rifle > --- INVENTORY -------- Improved Sensor Array Relay Coupler [Grunt] Relay Coupler [Sentry] Relay Coupler [Hunter] Remote Datajack [Rating: 74] Favorites ----------- Power Light Angular Momentum Engine Engine Light Angular Momentum Engine Power Core Nuclear Core Reactor Antimatter Reactor Propulsion Potential Leg Treads Light Treads Leg Potential Leg Wheel Compact Wheel Hover Unit Gravmag System Utility Relay Coupler [Sentry] Device Advanced Heat Sink Storage Small Storage Unit Processor Targeting Computer Hackware Relay Coupler [Sentry] Protection Damper Plating Weapon Gauss Rifle Energy Gun Field Laser Energy Cannon Light EM Pulse Cannon Ballistic Gun Gauss Rifle Ballistic Cannon Antimatter Cannon Launcher Precision Rocket Launcher Special Weapon Remote Datajack Special Melee Weapon Improved Datajack Build | -11 -10 -9 -9 -9 -8 -8 -8 -8 -7 -7 -7 -7 -6 -6 ------- Run | Yrd Mat Mat Min Exi Min Mat Sto Gar Fac Was Fac Gar Fac Gar Slots Evolved 8 | . . 2 . . . 2 . . 2 . . . 2 . Power 1 | . . . . . . . . . 1 . . . . . Propulsion 1 | . . . . . . 1 . . . . . . . . Utility 5 | . . 1 . . . 1 . . 1 . . . 2 . Weapon 1 | . . 1 . . . . . . . . . . . . Parts Attached 125 | 10 3 19 1 6 6 3 5 16 2 6 3 17 24 4 Power 21 | 1 . 2 . 1 1 . 1 4 . 3 . 2 6 . Engine 11 | 1 . 2 . . 1 . 1 2 . . . 1 3 . Core 8 | . . . . 1 . . . 2 . 1 . 1 3 . Reactor 2 | . . . . . . . . . . 2 . . . . Propulsion 25 | 4 . 6 . 4 . 1 . 1 . . . 2 6 1 Treads 1 | . . . . . . . . . . . . . 1 . Leg 20 | 2 . 6 . 2 . 1 . 1 . . . 2 5 1 Wheel 2 | 2 . . . . . . . . . . . . . . Hover 2 | . . . . 2 . . . . . . . . . . Flight . | . . . . . . . . . . . . . . . Utility 40 | 2 3 2 1 . 3 1 1 4 1 2 3 10 5 2 Device 15 | 1 1 1 . . 1 1 1 4 . 1 1 1 2 . Storage 4 | 1 1 1 . . . . . . . . . . 1 . Processor 4 | . 1 . 1 . 1 . . . . . 1 . . . Hackware 15 | . . . . . . . . . 1 . 1 9 2 2 Protection 2 | . . . . . 1 . . . . 1 . . . . Artifact . | . . . . . . . . . . . . . . . Weapon 39 | 3 . 9 . 1 2 1 3 7 1 1 . 3 7 1 Energy Gun 16 | 2 . 2 . . 2 1 . 5 . . . 2 2 . Energy Cannon 1 | . . 1 . . . . . . . . . . . . Ballistic Gun 14 | 1 . 5 . . . . 3 2 . 1 . 1 1 . Ballistic Cannon 1 | . . . . . . . . . . . . . 1 . Launcher 2 | . . 1 . . . . . . . . . . 1 . Special Weapon 1 | . . . . . . . . . 1 . . . . . Impact Weapon . | . . . . . . . . . . . . . . . Slashing Weapon . | . . . . . . . . . . . . . . . Piercing Weapon . | . . . . . . . . . . . . . . . Special Melee Weapon 4 | . . . . 1 . . . . . . . . 2 1 Unidentified Prototypes 5 | . . 2 . . . . . . . 1 . . 2 . Corrupted Parts 1 | . . . . . . . . . . 1 . . . . System Corruption 6 | . . . . . . . . . . 6 . . . . Parts Lost 56 | . 1 9 . . 2 1 . 9 . . . 4 14 16 Power 9 | . . 1 . . . . . 3 . . . 1 2 2 Propulsion 14 | . . 2 . . . . . 1 . . . 1 6 4 Utility 13 | . . 1 . . 1 . . 3 . . . 1 2 5 Weapon 20 | . 1 5 . . 1 1 . 2 . . . 1 4 5 Highest Loss Streak 8 | . 1 7 . . 1 1 . 4 . . . 2 8 8 To Critical Strikes 1 | . . 1 . . . . . . . . . . . . Average Backups 6 | 3 7 6 7 7 7 6 7 5 4 4 4 4 9 12 Power . | . 1 . . . 1 2 1 . . . . . . 2 Propulsion . | 1 3 1 2 2 2 1 1 . . . . . . . Utility 3 | . 1 3 4 2 1 1 2 2 3 3 2 2 5 7 Weapon 1 | . 1 . . 1 1 . 2 1 1 . 2 2 1 1 Tool/Special . | . . . . . . . . . . . . . . . Unused Backups 31 | . . 7 . 4 3 . 2 5 . . . 2 . 8 Power 3 | . . 1 . . . . . . . . . . . 2 Propulsion 6 | . . 5 . . 1 . . . . . . . . . Utility 15 | . . 1 . 4 1 . 1 3 . . . . . 5 Weapon 7 | . . . . . 1 . 1 2 . . . 2 . 1 Tool/Special . | . . . . . . . . . . . . . . . Average Slot Usage (%) 93 | . 96 97 100 99 99 99 100 97 89 79 91 96 89 75 Engine 6 | . 14 11 11 3 6 9 9 7 7 4 . 3 7 8 Core 3 | . . . . 7 3 . . 1 . 5 7 4 3 . Reactor 1 | . . . . . . . . . . 2 7 6 . . Leg 21 | . 3 22 22 20 22 27 27 24 23 23 23 22 15 14 Device 13 | . 12 10 11 11 10 17 18 24 26 9 19 10 6 8 Storage 5 | . 14 11 11 11 11 9 9 2 . . . . 4 5 Processor 6 | . . 11 11 11 8 9 9 9 7 1 4 7 3 . Hackware 7 | . . . . . . . . . 1 2 4 17 25 21 Energy Gun 5 | . 24 4 . . 7 12 1 12 5 . . 1 10 4 Ballistic Gun 15 | . 1 18 33 22 24 15 25 14 15 22 15 14 5 . Special Weapon 1 | . . . . . . . . . 1 . 6 5 . . Special Melee Weapon 1 | . . . . 10 1 . . . . . . . . 5 Peak Build Rating 74 | 9 9 25 26 41 42 50 49 49 51 74 63 64 65 62 Average Rating 44 | 5 7 17 25 33 41 49 48 46 49 65 59 59 54 47 On Entrance 40 | . 9 8 25 26 41 42 49 49 47 51 73 63 57 62 Avg Prop Armor Cover (%) 7 | 3 . . . . . . . . . . . . 8 . Naked Turns . | . . . . . . . . . . . . . . . Heaviest Build 81 | 15 20 24 23 23 28 27 30 30 17 81 38 39 59 59 Greatest Support 75 | 32 32 30 30 60 60 75 75 75 75 75 75 75 60 50 Greatest Overweight (x) 4 | 4 . 1 . 1 . . . . . 1 . . 2 1 Average Overweight (x) . | . . . . . . . . . . . . . . . Largest Inventory Capacity 15 | 8 10 10 8 8 8 8 8 8 5 5 5 5 15 15 Average Capacity 7 | 7 8 8 8 8 8 8 8 5 5 5 5 5 12 14 Most Carried 15 | 6 10 8 8 8 8 7 8 8 5 5 5 5 15 14 Average Carried 6 | 3 7 6 7 7 7 5 7 5 4 4 4 4 9 11 Final Capacity 15 | 8 10 8 8 8 8 8 8 5 5 5 5 5 15 5 Final Carried 13 | 6 9 8 7 8 8 6 8 5 4 5 5 5 13 5 Class Distribution -------------------- 23% | Scavenger-Gunner 14% | Mutant 13% | Scavenger-Skirmisher 12% | Gunner 10% | Bothacker-Gunner 8% | Skirmisher 7% | Bothacker-Mutant 5% | Scavenger-Tank Dominant Class ---------------- Mutant | -10/Materials Skirmisher | -9/Materials Skirmisher | -9/Mines Mutant | -9/Exiles Gunner | -8/Mines Scavenger-Gunner | -8/Materials Gunner | -8/Storage Scavenger-Gunner | -8/Garrison Scavenger-Gunner | -7/Factory Scavenger-Tank | -7/Waste Scavenger-Skirmisher | -7/Factory Scavenger-Skirmisher | -7/Garrison Bothacker-Gunner | -6/Factory Bothacker-Mutant | -6/Garrison Resources | -11 -10 -9 -9 -9 -8 -8 -8 -8 -7 -7 -7 -7 -6 -6 ----------- Run | Yrd Mat Mat Min Exi Min Mat Sto Gar Fac Was Fac Gar Fac Gar Matter Collected 4235 | 217 93 470 64 302 227 76 301 396 . 410 200 642 586 251 Remotely 456 | . . . . . . . . . . . . . 268 188 Salvage Created 6068 | 120 174 649 . 390 457 175 365 961 . 1013 142 359 886 377 Parts 219 | 7 10 43 . 16 18 11 16 49 . 6 4 16 16 7 Haulers Intercepted 5 | . 1 1 . . . . 1 . . . 1 . 1 . Recyclers Shooed 2 | . . 1 . . 1 . . . . . . . . . Parts Field Recycled . | . . . . . . . . . . . . . . . Retrieved Matter . | . . . . . . . . . . . . . . . Parts Self-Destructed . | . . . . . . . . . . . . . . . Prevented . | . . . . . . . . . . . . . . . Parts Restored . | . . . . . . . . . . . . . . . Kills | -11 -10 -9 -9 -9 -8 -8 -8 -8 -7 -7 -7 -7 -6 -6 ------- Run | Yrd Mat Mat Min Exi Min Mat Sto Gar Fac Was Fac Gar Fac Gar Combat Hostiles Destroyed 104 | . 3 14 . . 9 6 6 23 . 4 1 9 14 15 Guns 76 | . 1 8 . . 9 6 6 21 . 4 1 9 10 1 Cannons 5 | . . 3 . . . . . . . . . . 1 1 AOE 20 | . 2 3 . . . . . . . . . . 2 13 Classes Destroyed 14 | 2 2 7 . . . . 1 1 . 1 . . . . Worker 2 | . . 1 . . . . . . . . . . 1 . Builder 2 | . . 2 . . . . . . . . . . . . Tunneler 1 | 1 . . . . . . . . . . . . . . Hauler 5 | . 1 1 . . . . 1 . . . 1 . 1 . Recycler 2 | 1 . . . . . . . . . . . . 1 . Drone 1 | . . . . . . . 1 . . . . . . . Watcher 3 | . . 1 . . . . . 1 . . 1 . . . Swarmer 25 | . . 3 . . 1 3 . 7 . . . 3 . 8 Grunt 48 | . 3 4 . . 7 2 2 5 . . 1 5 12 7 Brawler 3 | . . 1 . . . . . 1 . . . . 1 . Duelist 3 | . . 1 . . 1 . . 1 . . . . . . Sentry 19 | . . 5 . . . 1 4 7 . . . 1 1 . Hunter 2 | . . . . . . . . 2 . . . . . . Compactor 4 | . . . . . . . . . . 4 . . . . Best Kill Streak 7 | 2 4 4 . . 3 6 4 6 . 2 1 3 5 7 Combat Bots Only 7 | . 3 3 . . 3 6 3 6 . 2 1 3 4 7 Max Kills in Single Turn 4 | 1 2 2 . . 1 2 2 2 . 1 1 1 2 4 Gunslinging 1 | . . . . . . 1 . 1 . . . . . . Exploded 4 | . 2 1 . . . . . . . . . . 1 4 Melee . | . . . . . . . . . . . . . . . Uniques/NPCs Destroyed . | . . . . . . . . . . . . . . . Combat | -11 -10 -9 -9 -9 -8 -8 -8 -8 -7 -7 -7 -7 -6 -6 -------- Run | Yrd Mat Mat Min Exi Min Mat Sto Gar Fac Was Fac Gar Fac Gar Hostile Shots Fired 694 | . 6 112 . . 49 19 27 147 . . 2 98 140 94 Missed 220 | . . 28 . . 15 7 8 41 . . 1 41 48 31 Hits 474 | . 6 84 . . 34 12 19 106 . . 1 57 92 63 Melee 11 | . . 11 . . . . . . . . . . . . Projectile 463 | . 6 73 . . 34 12 19 106 . . 1 57 92 63 AOE 2 | . . . . . . . . . . . . 2 . . Critical Strikes 21 | . . 4 . . 1 . 4 4 . . . 2 4 2 Damage Taken 7780 | . 113 1223 . . 545 157 286 1446 . 29 33 909 1578 1461 Core 1605 | . 17 213 . . 47 21 41 248 . . . 158 275 585 Absorbed by Shields 10 | . . . . . . . . . . . . . . 10 Core Remaining (%) 69 | 100 93 . . . 35 . . 43 . . . 77 . . Volleys Fired 386 | 3 8 47 . 25 21 13 19 56 . 34 17 61 46 36 Largest 3 | 2 2 3 . 2 3 3 3 3 . 3 2 2 3 2 Hottest 229 | 80 80 119 . 46 115 161 115 189 . 81 56 108 229 123 Shots Fired 910 | 6 14 119 . 52 62 39 57 168 . 102 30 102 113 46 Gun 830 | 6 14 96 . 52 62 39 57 168 . 102 25 85 100 24 Cannon 44 | . . 20 . . . . . . . . . . 11 13 Launcher 14 | . . 3 . . . . . . . . . . 2 9 Special 22 | . . . . . . . . . . . 5 17 . . Kinetic 567 | . . 71 . 52 48 22 55 62 . 102 25 77 40 13 Thermal 258 | . . 23 . . 7 17 2 106 . . . 8 71 24 Explosive 14 | . . 3 . . . . . . . . . . 2 9 Electromagnetic 49 | 6 14 22 . . 7 . . . . . . . . . Robot Hit Streak 19 | 3 7 19 . 19 10 7 6 13 . 8 8 9 14 18 Robot Miss Streak 9 | 2 4 5 . 2 3 2 5 3 . 5 9 6 5 1 Penetration Max 1 | . . . . . . . . . . . . 1 . . Secondary Targets 16 | . 1 . . . 3 2 3 4 . 1 . 1 1 . Max Gunslinging Chain 1 | . 1 . . . 1 1 1 1 . 1 . 1 1 . Shots Hit Robots 588 | 3 10 84 . 60 41 25 30 104 . 61 15 38 81 36 Core Hits 278 | 2 5 31 . 15 20 10 14 36 . 13 5 31 62 34 Critical Kills 1 | . . . . 1 . . . . . . . . . . Critical Parts Destroyed 2 | . . 1 . . 1 . . . . . . . . . Critical Strikes 12 | . . 2 . 1 1 . . 5 . 1 . . 1 1 Burn 7 | . . 1 . . . . . 5 . . . . 1 . Destroy 4 | . . 1 . 1 1 . . . . 1 . . . . Blast 1 | . . . . . . . . . . . . . . 1 Melee Attacks 24 | . . . . 23 . . . . . . . . . 1 Impact . | . . . . . . . . . . . . . . . Slashing . | . . . . . . . . . . . . . . . Piercing . | . . . . . . . . . . . . . . . Sneak Attacks 14 | . . . . 14 . . . . . . . . . . Combat Hostiles . | . . . . . . . . . . . . . . . Follow-up Attacks . | . . . . . . . . . . . . . . . Damage Inflicted 14027 | 43 209 1799 10 532 764 429 511 1886 . 1427 210 663 2417 3127 Guns 9859 | 43 123 1093 . 532 736 429 506 1886 . 1427 191 663 1845 385 Cannons 711 | . . 293 . . . . . . . . . . 160 258 Explosions 3371 | . 80 395 . . . . . . . . . . 412 2484 Melee . | . . . . . . . . . . . . . . . Ramming 86 | . 6 18 10 . 28 . 5 . . . 19 . . . Kinetic 6215 | . . 803 . 532 533 240 506 557 . 1427 191 663 505 258 Thermal 3988 | . 80 391 . . 114 189 . 1329 . . . . 1500 385 Explosive 3167 | . . 271 . . . . . . . . . . 412 2484 Electromagnetic 571 | 43 123 316 . . 89 . . . . . . . . . Impact . | . . . . . . . . . . . . . . . Slashing . | . . . . . . . . . . . . . . . Piercing . | . . . . . . . . . . . . . . . Highest Corruption 13 | . . 8 8 8 8 . . . . 13 13 13 1 1 Average Corruption 8 | . . 7 8 8 8 . . . . 11 13 13 1 1 Corruption Purged . | . . . . . . . . . . . . . . . Corruption Blocked . | . . . . . . . . . . . . . . . Effects 161 | . . 21 4 23 16 . . . . 17 22 48 6 4 Message Errors 43 | . . 1 1 5 8 . . . . 2 10 14 1 1 Matter Fused 34 | . . 7 1 4 2 . . . . 2 4 12 2 . Heat Flow Errors 20 | . . 1 1 5 2 . . . . 4 1 5 . 1 Energy Discharges 19 | . . 4 1 2 1 . . . . 2 3 4 2 . Parts Rejected 2 | . . . . . . . . . . 2 . . . . Parts Fused 1 | . . 1 . . . . . . . . . . . . Data Loss (minor) 18 | . . 2 . 3 1 . . . . 2 2 8 . . Data Loss (major) 4 | . . 1 . 1 1 . . . . 1 . . . . Misfires 8 | . . 1 . 2 . . . . . 1 1 1 . 2 Alerts 2 | . . . . 1 . . . . . . 1 . . . Weapon Failures 10 | . . 3 . . 1 . . . . 1 . 4 1 . Overload Shots . | . . . . . . . . . . . . . . . Overflow Damage 154 | . 5 40 . . . . . . . . . . . 109 Projectiles . | . . . . . . . . . . . . . . . Explosions 154 | . 5 40 . . . . . . . . . . . 109 Melee . | . . . . . . . . . . . . . . . Knockbacks 4 | . . . . . . . . . . . . . 2 2 Impact . | . . . . . . . . . . . . . . . Kinetic 4 | . . . . . . . . . . . . . 2 2 Secondary . | . . . . . . . . . . . . . . . Self-Inflicted Damage 383 | . 38 88 . . . . . . . . . 66 . 191 Shots 10 | . 1 2 . . . . . . . . . 1 . 6 Rammed 1 | . 1 . . . . . . . . . . . . . Targets Rammed 15 | . 1 4 1 . 5 . 1 1 . . 2 . . . Kicked 14 | . . 4 1 . 5 . 1 1 . . 2 . . . Crushed . | . . . . . . . . . . . . . . . Highest Temperature 420 | 36 162 379 234 329 301 . 52 153 . 319 196 249 420 207 Average Temperature 106 | 17 80 131 122 124 115 . 19 37 . 116 114 108 111 59 Received Heat Transfer 2952 | . 42 381 . . 303 66 180 513 . . 18 270 801 378 Effects 9 | . . 2 . 4 2 . . . . 1 . . . . Shutdowns 1 | . . 1 . . . . . . . . . . . . Energy Bleed 4 | . . . . 1 2 . . . . 1 . . . . Interference 3 | . . . . 3 . . . . . . . . . . Matter Decay 1 | . . 1 . . . . . . . . . . . . Siege Activations . | . . . . . . . . . . . . . . . Martial Activations . | . . . . . . . . . . . . . . . Shielding Activations . | . . . . . . . . . . . . . . . Robots Disrupted 1 | . . 1 . . . . . . . . . . . . Combat Hostiles 1 | . . 1 . . . . . . . . . . . . Robots Corrupted . | . . . . . . . . . . . . . . . Combat Hostiles . | . . . . . . . . . . . . . . . Parts Fried . | . . . . . . . . . . . . . . . Impact Corruptions . | . . . . . . . . . . . . . . . Robots Melted 4 | . . . . . . . . 3 . . . . 1 . Combat Hostiles 3 | . . . . . . . . 2 . . . . 1 . Parts Melted 17 | . . 2 . . . . . 9 . . . . 6 . Heat Transferred 8836 | . 50 880 . . 222 370 . 3219 . . . . 3378 717 Parts Sabotaged . | . . . . . . . . . . . . . . . Parts Stolen . | . . . . . . . . . . . . . . . Parts Stripped . | . . . . . . . . . . . . . . . Power Chain Reactions 3 | . 1 2 . . . . . . . . . . . . Alert | -11 -10 -9 -9 -9 -8 -8 -8 -8 -7 -7 -7 -7 -6 -6 ------- Run | Yrd Mat Mat Min Exi Min Mat Sto Gar Fac Was Fac Gar Fac Gar Maximum Alert Level 3 | . . . . . . . 1 3 2 . . 2 1 2 Low Security (%) 58 | 100 100 100 100 . 100 100 84 . . 100 100 17 61 20 Level 1 18 | . . . . . . . 15 18 . . . 43 38 41 Level 2 15 | . . . . . . . . 36 100 . . 38 . 38 Level 3 7 | . . . . . . . . 45 . . . . . . Level 4 . | . . . . . . . . . . . . . . . Level 5 . | . . . . . . . . . . . . . . . High Security . | . . . . . . . . . . . . . . . Max Security . | . . . . . . . . . . . . . . . Peak Influence 963 | 5 78 194 45 . 129 106 335 963 505 159 21 675 354 586 Initial 505 | . . 18 45 . . 31 31 207 505 159 . . 354 197 Average 240 | . 24 92 21 . 68 55 61 620 484 36 2 364 204 347 Influence Increases 4452 | 10 125 514 . 25 299 155 550 926 . . 57 795 500 496 Destroy 0b10 Robot/C 2320 | . 60 280 . . 200 120 220 580 . . 20 260 280 300 Destroy 0b10 Robot/NC 120 | 10 5 25 . 25 . 5 5 5 . . 15 . 15 10 Destroy Leader 386 | . 12 94 . . 40 20 82 20 . . 6 20 52 40 Allied During Kill 251 | . . . . . 14 2 154 38 . . . 43 . . Successful Hack 58 | . . 6 . . . 5 4 28 . . . . 15 . Disable Machine 180 | . 15 30 . . 15 . 15 . . . 15 30 45 15 Anti-Garrison Action 600 | . . . . . . . . 150 . . . 400 . 50 Destroy Structure 207 | . 3 34 . . . 3 10 . . . 1 42 48 66 Partial Spotted 15 | . . . . . . . 15 . . . . . . . Lose Combat Pursuer 315 | . 30 45 . . 30 . 45 105 . . . . 45 15 Influence Decreases 3919 | 10 80 442 117 25 216 162 307 282 508 455 57 120 893 245 Entered New Map 1468 | . . 27 72 . . 52 45 112 458 296 . . 321 85 Time Decay 1411 | 10 70 325 45 25 176 80 82 . 50 99 57 . 392 . Lost Part 560 | . 10 90 . . 20 10 . 90 . . . 40 140 160 Lost Ally 480 | . . . . . 20 20 180 80 . 60 . 80 40 . Squads Dispatched 14 | . 1 1 . . . . 3 . . . 3 . 6 . Investigation 1 | . . . . . . . . . . . . . 1 . Extermination 2 | . . . . . . . . . . . 1 . 1 . Reinforcement 8 | . 1 1 . . . . 2 . . . 2 . 2 . Assault . | . . . . . . . . . . . . . . . Garrison 3 | . . . . . . . 1 . . . . . 2 . Intercept . | . . . . . . . . . . . . . . . Searches Triggered . | . . . . . . . . . . . . . . . Construction Impeded 3 | . . 1 . . . . 1 . . . . . 1 . Haulers Reinforced 2 | . . . . . . . . . . . 1 . 1 . Active Scanning Responses . | . . . . . . . . . . . . . . . Cargo Convoy Interrupts . | . . . . . . . . . . . . . . . Alert ID Control Effect 5 | . . . . . . . . . . . . 5 . . Stealth | -11 -10 -9 -9 -9 -8 -8 -8 -8 -7 -7 -7 -7 -6 -6 --------- Run | Yrd Mat Mat Min Exi Min Mat Sto Gar Fac Was Fac Gar Fac Gar Distress Signals 10 | . 1 3 . . . 2 1 1 . . . . 2 . Communications Jammed . | . . . . . . . . . . . . . . . Distress Signals . | . . . . . . . . . . . . . . . Times Spotted 185 | . 7 25 . . 12 9 14 32 . 6 10 26 21 23 Peak Tracking Total 10 | . 3 4 . . 3 5 5 10 . 2 3 7 5 10 Tactical Retreats 14 | . 1 3 . . 1 . 2 4 . . . . 2 1 Traps | -11 -10 -9 -9 -9 -8 -8 -8 -8 -7 -7 -7 -7 -6 -6 ------- Run | Yrd Mat Mat Min Exi Min Mat Sto Gar Fac Was Fac Gar Fac Gar Traps Triggered 13 | . 1 . . . . . . 5 1 . 1 3 . 2 Indirectly . | . . . . . . . . . . . . . . . Trap Hack Attempts . | . . . . . . . . . . . . . . . Triggered . | . . . . . . . . . . . . . . . Disarmed . | . . . . . . . . . . . . . . . Reprogrammed . | . . . . . . . . . . . . . . . Reused . | . . . . . . . . . . . . . . . Traps Extracted . | . . . . . . . . . . . . . . . Installed . | . . . . . . . . . . . . . . . Triggered . | . . . . . . . . . . . . . . . Machines | -11 -10 -9 -9 -9 -8 -8 -8 -8 -7 -7 -7 -7 -6 -6 ---------- Run | Yrd Mat Mat Min Exi Min Mat Sto Gar Fac Was Fac Gar Fac Gar Machines Disabled 26 | . 1 2 . . 1 . 1 3 . . 1 11 3 3 Max in Single Turn 2 | . 1 1 . . 1 . 1 1 . . 1 2 2 1 Garrison Relay 11 | . . . . . . . . 3 . . . 7 . 1 Phase Generator 1 | . . . . . . . . . . . . 1 . . Machines Repaired . | . . . . . . . . . . . . . . . Machines Dismantled . | . . . . . . . . . . . . . . . Machines Sabotaged . | . . . . . . . . . . . . . . . Overloaded Fab Kills . | . . . . . . . . . . . . . . . Hacking | -11 -10 -9 -9 -9 -8 -8 -8 -8 -7 -7 -7 -7 -6 -6 --------- Run | Yrd Mat Mat Min Exi Min Mat Sto Gar Fac Was Fac Gar Fac Gar Machines Accessed 27 | . 2 5 . 3 . 1 4 3 . . 2 1 6 . Terminals 20 | . 2 4 . . . 1 3 3 . . 1 1 5 . Fabricators . | . . . . . . . . . . . . . . . Repair Stations . | . . . . . . . . . . . . . . . Recycling Units . | . . . . . . . . . . . . . . . Scanalyzers 1 | . . 1 . . . . . . . . . . . . Garrison Access 3 | . . . . . . . 1 . . . 1 . 1 . Total Hacks 58 | . 5 12 . 11 . 3 6 3 . . 4 1 13 . Successful 33 | . 3 3 . 11 . 1 2 2 . . 3 1 7 . Failed 25 | . 2 9 . . . 2 4 1 . . 1 . 6 . Catastrophic . | . . . . . . . . . . . . . . . Database Lockouts . | . . . . . . . . . . . . . . . Manual 30 | . 3 7 . 1 . 3 4 . . . . . 12 . Terminals 41 | . 5 10 . . . 3 5 3 . . 2 1 12 . Fabricators . | . . . . . . . . . . . . . . . Repair Stations . | . . . . . . . . . . . . . . . Recycling Units . | . . . . . . . . . . . . . . . Scanalyzers 2 | . . 2 . . . . . . . . . . . . Garrison Access 4 | . . . . . . . 1 . . . 2 . 1 . Terminal Hacks 20 | . 1 1 . 11 . . 1 2 . . 1 1 2 . Record 11 | . 1 . . 10 . . . . . . . . . . Robot Analysis 1 | . . 1 . . . . . . . . . . . . Open Door 2 | . . . . . . . 1 . . . . 1 . . Open DSF 1 | . . . . . . . . . . . 1 . . . Emergency Access Points 1 | . . . . . . . . 1 . . . . . . Recall Investigation 1 | . . . . . . . . . . . . . 1 . Recall Extermination 1 | . . . . . . . . . . . . . 1 . Patrol Navigation 1 | . . . . . . . . 1 . . . . . . Proto ID Catalog 1 | . . . . 1 . . . . . . . . . . Fabricator Hacks . | . . . . . . . . . . . . . . . Repair Station Hacks . | . . . . . . . . . . . . . . . Recycling Unit Hacks . | . . . . . . . . . . . . . . . Scanalyzer 1 | . . 1 . . . . . . . . . . . . Retrieve Study 1 | . . 1 . . . . . . . . . . . . Garrison Access Hacks 4 | . . . . . . . 1 . . . 2 . 1 . Unlock Access 3 | . . . . . . . 1 . . . 1 . 1 . Coupler Status 1 | . . . . . . . . . . . 1 . . . Unauthorized Hacks 8 | . 2 1 . . . 1 . . . . . . 4 . Terminals 8 | . 2 1 . . . 1 . . . . . . 4 . Botnet 8 | . 2 1 . . . 1 . . . . . . 4 . Fabricators . | . . . . . . . . . . . . . . . Repair Stations . | . . . . . . . . . . . . . . . Recycling Units . | . . . . . . . . . . . . . . . Scanalyzers . | . . . . . . . . . . . . . . . Garrison Access . | . . . . . . . . . . . . . . . Data Cores Recovered . | . . . . . . . . . . . . . . . Used . | . . . . . . . . . . . . . . . Hacking Detections 19 | . 1 5 . . . . 3 3 . . 2 . 5 . Full Trace Events 1 | . . . . . . . . . . . . . 1 . Feedback Events 1 | . . . . . . . . . . . . . 1 . Corruption 1 | . . . . . . . . . . . . . 1 . Feedback Blocked . | . . . . . . . . . . . . . . . Robot Schematics Acquired . | . . . . . . . . . . . . . . . Robots Built . | . . . . . . . . . . . . . . . Authchips . | . . . . . . . . . . . . . . . Time . | . . . . . . . . . . . . . . . Total Robot Build Rating . | . . . . . . . . . . . . . . . Part Schematics Acquired . | . . . . . . . . . . . . . . . Parts Built . | . . . . . . . . . . . . . . . Authchips . | . . . . . . . . . . . . . . . Time . | . . . . . . . . . . . . . . . Total Part Build Rating . | . . . . . . . . . . . . . . . Part Studies Acquired 1 | . . 1 . . . . . . . . . . . . Parts Repaired . | . . . . . . . . . . . . . . . Time . | . . . . . . . . . . . . . . . Parts Recycled . | . . . . . . . . . . . . . . . Recycled Matter . | . . . . . . . . . . . . . . . Retrieved Matter . | . . . . . . . . . . . . . . . Retrieved Components . | . . . . . . . . . . . . . . . Parts Scanalyzed . | . . . . . . . . . . . . . . . Part Schematics Acquired . | . . . . . . . . . . . . . . . Parts Damaged . | . . . . . . . . . . . . . . . Bothacking | -11 -10 -9 -9 -9 -8 -8 -8 -8 -7 -7 -7 -7 -6 -6 ------------ Run | Yrd Mat Mat Min Exi Min Mat Sto Gar Fac Was Fac Gar Fac Gar Used RIF Installer 3 | . . . . . . . . 1 . . . 1 . 1 Zone Cloak 1 | . . . . . . . . . . . . . . 1 Alert ID Control 1 | . . . . . . . . . . . . 1 . . Robots Hacked 9 | . . . . . . . . . . . 3 6 . . Non-combat 1 | . . . . . . . . . . . 1 . . . Combat 8 | . . . . . . . . . . . 2 6 . . Robot Hacks Applied 15 | . . . . . . . . . . . 5 10 . . parse_system 4 | . . . . . . . . . . . 3 1 . . find_shortcuts 1 | . . . . . . . . . . . . 1 . . overload_power 1 | . . . . . . . . . . . . 1 . . disable_weapons 2 | . . . . . . . . . . . . 2 . . go_dormant 1 | . . . . . . . . . . . . 1 . . streamctrl_high 1 | . . . . . . . . . . . . 1 . . formatsys_high 5 | . . . . . . . . . . . 2 3 . . Relay Couplers Released 43 | . . . . . . . . 11 . . . 29 . 3 Machine Destruction 43 | . . . . . . . . 11 . . . 29 . 3 Attached 13 | . . . . . . . . . . . 1 9 1 2 Fabnet Peak Effective % . | . . . . . . . . . . . . . . . Robots Rewired 10 | . . . . 3 . . . 7 . . . . . . Allies Hacked . | . . . . . . . . . . . . . . . Hacks Repelled . | . . . . . . . . . . . . . . . Allies | -11 -10 -9 -9 -9 -8 -8 -8 -8 -7 -7 -7 -7 -6 -6 -------- Run | Yrd Mat Mat Min Exi Min Mat Sto Gar Fac Was Fac Gar Fac Gar Total Allies 27 | . . . . 3 . . 10 7 . . 2 5 . . Largest Group 10 | . . . . 3 3 1 10 4 3 3 1 4 2 . Highest-Rated Group 173 | . . . . 24 24 8 173 72 72 72 29 117 48 . Highest-Rated Ally 32 | . . . . 8 8 8 29 24 24 24 29 32 32 . Total Orders 2 | . . . . . . . 1 1 . . . . . . STAY 1 | . . . . . . . . 1 . . . . . . EXPLORE 1 | . . . . . . . 1 . . . . . . . Ally Attacks 212 | . . . . . 24 9 51 28 . 51 3 42 4 . Total Damage 3861 | . . . . . 217 86 505 253 . 1724 57 951 68 . Kills 25 | . . . . . 1 1 5 6 . 2 1 9 . . Allies Corrupted 1 | . . . . . . . 1 . . . . . . . Allies Melted 1 | . . . . . . . 1 . . . . . . . Intel | -11 -10 -9 -9 -9 -8 -8 -8 -8 -7 -7 -7 -7 -6 -6 ------- Run | Yrd Mat Mat Min Exi Min Mat Sto Gar Fac Was Fac Gar Fac Gar Active Infowar (turns) 2882 | 30 209 547 112 758 18 . . 24 82 104 562 436 . . Sensors 1208 | . . . . . . . . 24 82 104 562 436 . . Terrain 1289 | 30 40 331 112 758 18 . . . . . . . . . Structural 385 | . 169 216 . . . . . . . . . . . . Robot Analysis Total 1 | . . 1 . . . . . . . . . . . . Derelict Logs Recovered . | . . . . . . . . . . . . . . . Drone Launches 14 | . . . . . . . 14 . . . . . . . Drone Recoveries . | . . . . . . . . . . . . . . . Exploration | -11 -10 -9 -9 -9 -8 -8 -8 -8 -7 -7 -7 -7 -6 -6 ------------- Run | Yrd Mat Mat Min Exi Min Mat Sto Gar Fac Was Fac Gar Fac Gar Turns Passed 7477 | 117 221 771 112 768 428 167 257 1150 100 492 563 1044 920 367 Spaces Moved 4943 | 62 147 387 88 639 348 83 153 849 90 305 463 782 387 160 Core 59 | 24 . . . . . . . . . . . . . 35 Treads 15 | . . . . . . . . . . . . . 15 . Legs 4662 | 3 23 387 88 591 348 83 153 849 90 305 463 782 372 125 Wheels 159 | 35 124 . . . . . . . . . . . . . Hover 48 | . . . . 48 . . . . . . . . . . Flight . | . . . . . . . . . . . . . . . Fastest Speed 45 | 50 100 112 120 56 90 100 100 45 100 60 100 100 110 50 Average Speed 110 | 117 103 128 120 98 90 100 100 97 100 120 100 104 161 156 Slowest Speed 260 | 250 120 190 120 120 90 100 100 100 100 176 100 110 260 190 Overloaded Moves 43 | . . . . . . . . 7 . 36 . . . . Propulsion Burnouts . | . . . . . . . . . . . . . . . Robots Hopped . | . . . . . . . . . . . . . . . Potential Cave-ins . | . . . . . . . . . . . . . . . Cave-ins Triggered . | . . . . . . . . . . . . . . . Exploration Rate (%) 40 | 4 35 35 25 93 66 13 53 72 3 87 11 71 11 34 Regions Visited 14 Branch Regions 4 Pre-discovered Areas . | . . . . . . . . . . . . . . . Known Exits Taken 5 | . 1 1 . . . . 1 . . . 1 . 1 . Unknown Exits Taken 5 | 1 . . 1 1 1 1 . . . . . . . . Scrap Searched 2 | . . . 1 . 1 . . . . . . . . . Spaces Dug . | . . . . . . . . . . . . . . . Terrain Destroyed 241 | . 2 30 . . . . 11 2 . 3 . 72 57 64 Melee . | . . . . . . . . . . . . . . . Projectile 12 | . . . . . . . . 2 . 3 . 1 6 . AOE 229 | . 2 30 . . . . 11 . . . . 71 51 64 Terrain Rammed . | . . . . . . . . . . . . . . . Walls Destroyed . | . . . . . . . . . . . . . . . Machines Disabled . | . . . . . . . . . . . . . . . Actions | -11 -10 -9 -9 -9 -8 -8 -8 -8 -7 -7 -7 -7 -6 -6 --------- Run | Yrd Mat Mat Min Exi Min Mat Sto Gar Fac Was Fac Gar Fac Gar Total 6242 | 96 203 575 94 732 420 137 231 1052 101 360 534 905 571 231 Wait 445 | 16 32 77 4 19 19 37 25 43 3 4 39 30 96 1 Move 4933 | 61 146 386 87 638 347 82 153 848 90 304 463 781 387 160 Hop . | . . . . . . . . . . . . . . . Pick Up 78 | 4 5 14 . 6 9 1 7 12 2 . 3 3 9 3 Fast Attach 76 | 9 2 9 . 5 3 . 3 7 1 6 5 10 15 1 Attach 40 | . 3 7 1 . 3 3 1 6 1 . 2 1 5 7 Detach 26 | 2 1 4 1 2 1 . 3 1 . 4 . 1 4 2 Swap 44 | 1 2 9 . 1 2 1 2 6 1 3 1 7 5 3 Drop 85 | . 3 18 . 9 10 . 9 11 3 5 2 9 4 2 Fire 386 | 3 8 47 . 25 21 13 19 56 . 34 17 61 46 36 Melee 24 | . . . . 23 . . . . . . . . . 1 Ram 1 | . 1 . . . . . . . . . . . . . Kick 14 | . . 4 1 . 5 . 1 1 . . 2 . . . Crush . | . . . . . . . . . . . . . . . Escape Stasis 18 | . . . . . . . . 1 . . . 2 . 15 Rewire 65 | . . . . 4 . . 1 60 . . . . . . Trap . | . . . . . . . . . . . . . . . Miscellaneous 7 | . . . . . . . 7 . . . . . . . Route ------- -11/Scrapyard -10/Materials -9/Materials (discovered 2 exits: *Min x2) -9/Mines -9/Exiles -8/Mines -8/Materials -8/Storage -8/Garrison (discovered 3 exits: [*Fac x3]) -7/Factory -7/Waste -7/Factory (discovered 3 exits: *Low x2 / Gar) -7/Garrison (discovered 2 exits: *Fac x2) -6/Factory -6/Garrison History --------- Turn | Location | Event 5 | -11/Scrapyard | Discovered new exit (range 15) 118 | -11/Scrapyard | Entered Materials 288 | -10/Materials | Discovered new exit (range 15) 330 | -10/Materials | Identified exit to Materials 339 | -10/Materials | Entered another Materials area 339 | -9/Materials | Evolved 2 slots: Utility x1, Weapon x1 602 | -9/Materials | Lost 7 parts (1p2n1u3w) 1021 | -9/Materials | Discovered new exit (range 16) 1058 | -9/Materials | Discovered new exit (range 15) 1062 | -9/Materials | Identified exit to Mines 1104 | -9/Materials | Core integrity fell below 50% 1110 | -9/Materials | Entered Mines 1216 | -9/Mines | Deemed a non-threat by the Exiles lab entrance 1217 | -9/Mines | Discovered new exit (range 5) 1222 | -9/Mines | Entered Exiles 1222 | -9/Exiles | Found Exiles lab destroyed 1558 | -9/Exiles | Build established: Mutant 1613 | -9/Exiles | Opened EX-Vault 1617 | -9/Exiles | Found Potential Leg 1620 | -9/Exiles | Found Potential Leg 1974 | -9/Exiles | Discovered new exit (range 12) 1990 | -9/Exiles | Entered Mines 1990 | -8/Mines | Accompanied by 3 allies 2406 | -8/Mines | Build established: Gunner 2407 | -8/Mines | Discovered new exit (range 7) 2418 | -8/Mines | Entered Materials 2418 | -8/Materials | Accompanied by 1 ally 2418 | -8/Materials | Evolved 2 slots: Propulsion x1, Utility x1 2499 | -8/Materials | Discovered new exit (range 13) 2585 | -8/Materials | Entered Storage 2758 | -8/Storage | Assisted by bots powering up and referring to "LRC-V3" 2811 | -8/Storage | Garrison activated, responded to threat 2841 | -8/Storage | Identified exit to Garrison 2842 | -8/Storage | Entered Garrison 2842 | -8/Garrison | Accompanied by 2 allies 2853 | -8/Garrison | Lost 15 allies 2888 | -8/Garrison | Triggered checkpoint 2938 | -8/Garrison | Triggered checkpoint 2941 | -8/Garrison | Triggered checkpoint 2987 | -8/Garrison | Lost 3 parts (1p1n1u) 3025 | -8/Garrison | Discovered new exit (range 10) 3048 | -8/Garrison | Triggered checkpoint 3235 | -8/Garrison | Lost 4 parts (2p2u) 3283 | -8/Garrison | Core integrity fell below 50% 3347 | -8/Garrison | Installed Relay Interface Framework 3356 | -8/Garrison | Discovered new exit (range 14) 3394 | -8/Garrison | Garrison Relay disabled 3396 | -8/Garrison | Triggered checkpoint 3454 | -8/Garrison | Triggered checkpoint 3485 | -8/Garrison | Build established: Scavenger-Gunner 3508 | -8/Garrison | Triggered checkpoint 3533 | -8/Garrison | Garrison Relay disabled 3542 | -8/Garrison | Lost 3 allies 3574 | -8/Garrison | Discovered new exit (range 12) 3610 | -8/Garrison | Triggered checkpoint 3820 | -8/Garrison | Garrison Relay disabled 3884 | -8/Garrison | Triggered checkpoint 3992 | -8/Garrison | Entered Factory 3992 | -7/Factory | Accompanied by 3 allies 3992 | -7/Factory | Evolved 2 slots: Power x1, Utility x1 4092 | -7/Factory | Sucked down chute 4092 | -7/Factory | Entered Waste 4107 | -7/Waste | EMP discharged 4122 | -7/Waste | 3 allies followed down the chute 4130 | -7/Waste | Spotted C-40 Crusher 4141 | -7/Waste | Spotted C-40 Crusher 4150 | -7/Waste | Allies destroyed C-40 Crusher 4160 | -7/Waste | Allies destroyed C-40 Crusher 4163 | -7/Waste | Spotted C-40 Crusher 4167 | -7/Waste | Destroyed C-40 Crusher 4179 | -7/Waste | Destroyed C-40 Crusher 4198 | -7/Waste | Found Damper Plating 4207 | -7/Waste | EMP discharged 4218 | -7/Waste | Spotted C-40 Crusher 4230 | -7/Waste | Spotted C-40 Crusher 4257 | -7/Waste | System corruption reached 10% 4257 | -7/Waste | Destroyed C-40 Crusher 4307 | -7/Waste | EMP discharged 4394 | -7/Waste | Destroyed C-40 Crusher 4407 | -7/Waste | EMP discharged 4460 | -7/Waste | Discovered new exit (range 13) 4484 | -7/Waste | Build established: Scavenger-Tank 4507 | -7/Waste | EMP discharged 4584 | -7/Waste | Entered Factory 4722 | -7/Factory | Identified exit to DSF 4787 | -7/Factory | Discovered new exit (range 14) 4806 | -7/Factory | Identified exit to Lower Caves 4889 | -7/Factory | Build established: Scavenger-Skirmisher 5128 | -7/Factory | Discovered exit to Lower Caves (range 9) 5147 | -7/Factory | Identified exit to Garrison 5147 | -7/Factory | Entered Garrison 5147 | -7/Garrison | Accompanied by 1 ally 5170 | -7/Garrison | Rescued a captive Derelict 5171 | -7/Garrison | Rescued a captive Derelict 5207 | -7/Garrison | Triggered checkpoint 5209 | -7/Garrison | Expanded RIF knowledge: Alert ID Control 5230 | -7/Garrison | Triggered checkpoint 5333 | -7/Garrison | Phase Generator disabled 5339 | -7/Garrison | Discovered new exit (range 8) 5346 | -7/Garrison | Identified exit to Factory 5576 | -7/Garrison | Garrison Relay disabled 5653 | -7/Garrison | Triggered checkpoint 5726 | -7/Garrison | Garrison Relay disabled 5787 | -7/Garrison | Garrison Relay disabled 5787 | -7/Garrison | Garrison Relay disabled 5790 | -7/Garrison | Garrison Relay disabled 5793 | -7/Garrison | Garrison Relay disabled 5919 | -7/Garrison | Triggered checkpoint 6024 | -7/Garrison | Discovered exit to Factory (range 13) 6073 | -7/Garrison | Triggered checkpoint 6075 | -7/Garrison | Garrison Relay disabled 6191 | -7/Garrison | Entered Factory 6191 | -6/Factory | Accompanied by 2 allies 6191 | -6/Factory | Evolved 2 slots: Utility x2 6618 | -6/Factory | Lost 8 parts (2p3n3w) 6965 | -6/Factory | Build established: Bothacker-Gunner 6984 | -6/Factory | Garrison activated, responded to threat 7078 | -6/Factory | Lost 3 parts (1n1u1w) 7111 | -6/Factory | Identified exit to Garrison 7111 | -6/Factory | Entered Garrison 7157 | -6/Garrison | Spotted B-90 Cyclops 7177 | -6/Garrison | Triggered checkpoint 7296 | -6/Garrison | Garrison Relay disabled 7344 | -6/Garrison | Core integrity fell below 50% 7361 | -6/Garrison | Destroyed 7 combat bots 7388 | -6/Garrison | Lost 6 parts (2p2n1u1w) 7423 | -6/Garrison | Build established: Bothacker-Mutant 7441 | -6/Garrison | Triggered checkpoint 7441 | -6/Garrison | Triggered checkpoint 7452 | -6/Garrison | Core integrity fell below 20% 7454 | -6/Garrison | Triggered checkpoint 7464 | -6/Garrison | Expanded RIF knowledge: Zone Cloak 7478 | -6/Garrison | Destroyed by G-50 Soldier with Heavy Laser Last Messages --------------- 07456_ Relay Coupler [Specialist] destroyed. 07456_ Penetrated by Slug. 07456_ Imp. Datajack destroyed. Initiating installation procedure... 07464_ Expanded RIF knowledge: Zone Cloak. 07468_ Triggered Stasis Trap. 07468_ A bubble of rippling energy engulfs the area. 07468_ Field strength at 94. 07468_ Field strength at 88. 07469_ Field strength at 82. 07470_ Field strength at 76. 07471_ Field strength at 70. 07472_ Field strength at 64. 07473_ Field strength at 58. 07474_ Field strength at 52. 07475_ Field strength at 46. 07476_ Relay Coupler [Hunter] destroyed. 07476_ Field strength at 35. 07477_ Field strength at 29. Map ----- +----------------------------------------------------+ | ?????????????????????????????????????????????????? | | ?????????????????????????????????????????????????? | | ?????????????????????????????????????????????????? | | ?????????????????????????????????????????????????? | | ?????????????????????????????????????????????????? | | #????????????????????????????????????????????????? | | #????????????????????????????????????????????????? | | ##???????????????????????????????????????????????? | | #???????????????????????????????????????????????? | | #???????????????????????????????????????????????? | | ##???????????????????????????????????????????????? | | ?????????????????????????????????????????????????? | | ##???????????????????????????????????????????????? | | #???????????????????????????????????????????????? | | #???????????????????????????????????????????????? | | #???????????????????????????????????????????????? | | #???????????????????????????????????????????????? | | #????????????????#####??????????????????????????? | | #????????????????#"""#??????????????????????????? | | #????????????????#" "#??????????????????????????? | | #????????????????#" "#??????????????????????????? | | #????????????????#" "#??????????????????????????? | | #????????????????# #??????????????????????????? | | #????????????????## ############## #???????????? | | #??????#####??????# g #???????????? | | #??????? #??????# g @ #???????????? | | #??????? #??????# g########### #??????????????? | | #???????# #??????# #??????????????????????????? | | #???????# #??????# #??????????????????????????? | | #???????# #??????# #??????????????????????????? | | #???????# #??????# #??????????????????????????? | | #?????### ######## #??????????????????????????? | | #?????# # # ## #??????????????????????????? | | ####### # ## ##?????????????????????????? | | ^ #?????????????????????????? | | !! #?????????????????????????? | | !!* #?????????????????????????? | | ####+###* ## #?????????????????????????? | | ???????## %% ## #?????????????????????????? | | ??????# % "?????????????????????????? | | ??????# [ "?????????????????????????? | | ??????# "?????????????????????????? | | ??????# "?????????????????????????? | | ??????### ## ## #?????????????????????????? | | ????????# ## #? #?????????????????????????? | | ???????? ????????????????????????? | | ??????? ???????????????????????? | | ??????### ####??????????????????????? | | ????????## ## "## ##?????????????????????????? | | ?????????# ## "%#? ???????????????????????????? | +----------------------------------------------------+ Best States ------------- Heat Dissipation 81 Energy Generation 32 Energy Capacity 515 Matter Stores 300 Matter Capacity 300 Sight Range 16 Robot Scan Range 15 Terrain Scan Range 16 Terrain Scan Density 110 Base Temperature (-) 100 Armor Coverage 1600 Resistance: EM 90 Evasion (%) 63 Targeting Accuracy 5 Recoil Reduction 4 Offensive Hacking 12 Relay Coupler Types 4 Relay Coupler Value 88 Authchip Count 1 Item Schematics ----------------- None Robot Schematics ------------------ None Fabricated ------------ Nothing Repaired ---------- Nothing Studied --------- Imp. Aluminum Leg | -9/Materials | Hacked Alien Tech Used ----------------- None Achievements -------------- Assimilation Complete Error 47 Join The Dark Side Let Me Out Of Here Luggage Code Mindtrick Plot Armor You Will Be Upgraded Challenges ------------ None Game ------ Seed ScatterDecoderFemtoactuators Manual? 0 Play Time 01:39:40 Cumulative 67.9 hours Start 2026.07.14 @ 11:25:04 End 2026.07.14 @ 13:53:37 Sessions 1 Manual Loads 0 Difficulty Rogue Special Mode None Game No. 39 Rogue 39 Adventurer 0 Explorer 0 Win Type - Total 0 Types 0/0/0/0/0/0/0/0/0/0 Lore% 20 Gallery% 43 Achievement% 31 Wizard Run 0 Options --------- Layout 1 ASCII 0 Keyboard 1 Movement Vi Keybinds 0 Fullscreen 1 Font 32/SmallcapsGlow Map View 50x35 Zoom Use 0% Tactical HUD 1 Map Filters NONE Filters NONE Steam 1 RUN: 76f81434-2b0b-4afa-889c-48bd58272bd7